[Event "Vienna Championship 2022"]
[Site "Vienna"]
[Date "2022.09.25"]
[Round "9.3"]
[White "Leisch, Lukas"]
[Black "Steindl, Johannes"]
[Result "1-0"]
[ECO "A62"]
[WhiteElo "2409"]
[BlackElo "2327"]
[Annotator "TA"]
[PlyCount "51"]
[EventDate "2022.09.17"]
[EventType "tourn"]
[EventCountry "AUT"]
[SourceTitle "playchess.com"]
[Source "ChessBase"]
[SourceQuality "1"]
[TimeControl "5400+30"]

{[%evp 21,51,0,21,0,48,0,0,5,28,29,16,0,27,0,0,-5,0,-15,67,57,226,214,229,229,261,207,295,368,329,342,713,491]} 1. c4 {[%emt 0:00:03] Postny,E} g6 {[%emt 0:00:16]} 2. d4 {[%emt 0:00:37]} Nf6 {[%emt 0:00:05]} 3. g3 {[%emt 0:00:06]} Bg7 {[%emt 0:00:05]} 4. Bg2 {[%emt 0:00:07]} O-O {[%emt 0:00:05]} 5. Nc3 {[%emt 0:00:05]} d6 {[%emt 0:00:08]} 6. Nf3 {[%emt 0:00:07]} c5 {[%emt 0:00:02]} 7. d5 {[%emt 0:00:10]} e6 {[%emt 0:00:13]} 8. O-O {[%emt 0:00:09]} Re8 {[%emt 0:00:38]} 9. Bf4 {[%emt 0:00:08]} exd5 {[%emt 0:03:33]} 10. cxd5 {[%emt 0:00:08]} Ne4 {[%emt 0:00:58] 10...Bf5 is a critical line.} 11. Nxe4 {[%emt 0:00:09]} Rxe4 {[%emt 0:00:01]} 12. Nd2 {[%emt 0:00:14] A62: Modern Benoni: Fianchetto Variation without early ...Nbd7.} Rb4 {[%emt 0:01:27]} (12... Rxf4 $11 13. gxf4 Bxb2) 13. a3 {[%emt 0:00:43]} Rxf4 {[%emt 0:00:04]} 14. gxf4 {[%emt 0:00:06] The position is equal.} Bxb2 {[%emt 0:00:02]} 15. Rb1 {[%emt 0:00:10]} Bg7 {[%emt 0:00:46]} 16. Qb3 {[%emt 0:00:37]} Na6 {[%emt 0:07:55]} 17. Nc4 {[%emt 0:10:04][%cal Bd2c4,Bc4d6,Bd6f5][%mdl 32]} Rb8 {[%emt 0:00:04]} 18. a4 {[%emt 0:02:11]} Nb4 {[%emt 0:02:15]} 19. e4 {[%emt 0:11:19][%cal Be2e4,Be4e5][%mdl 32] [#]} Qf6 $146 {[%emt 0:02:48]} ({Black should play} 19... b6 $11) ({Predecessor:} 19... b6 20. e5 dxe5 21. fxe5 Bf5 22. Rbe1 Bd3 23. f4 Bxf1 24. Rxf1 Qd7 25. d6 Qf5 26. Ne3 Qe6 {½-½ (53) Postny,E (2641)-Leko,P (2734) Bilbao 2014 CBM 163 [Postny,E]}) 20. Qg3 $1 $14 {[%emt 0:01:56] e5 is the strong threat. White is more active.} Bh6 $2 {[%emt 0:00:07] [#] Loses the game.} ({Better is} 20... Bf8 $14) 21. e5 $1 $18 {[%emt 0:09:09]} Qxf4 {[%emt 0:00:05]} 22. Nxd6 {[%emt 0:00:12]} Bd7 {[%emt 0:03:23]} 23. Rfe1 {[%emt 0:08:37] aiming for e6.} Bxa4 {[%emt 0:07:29] [#]} (23... Qxg3 $142 24. hxg3 (24. fxg3 Bf8 $18) 24... Bf8) 24. e6 $1 {[%emt 0:02:23] Really sharp!} fxe6 {[%emt 0:01:11]} 25. dxe6 {[%emt 0:00:40]} Qd4 $2 {[%emt 0:03:30]} (25... Qxg3 26. hxg3 Bd2) 26. Nf5 {[%emt 0:12:23] Weighted Error Value: White=0.13 (very precise) /Black=0.46} 1-0

[Event "Vienna Championship 2022"]
[Site "Vienna"]
[Date "2022.09.25"]
[Round "9.4"]
[White "Kruckenhauser, Arthur"]
[Black "Vitouch, Anatol"]
[Result "1/2-1/2"]
[ECO "C42"]
[WhiteElo "2289"]
[BlackElo "2252"]
[Annotator "TA"]
[PlyCount "31"]
[EventDate "2022.09.17"]
[EventType "tourn"]
[EventCountry "AUT"]
[SourceTitle "playchess.com"]
[Source "ChessBase"]
[SourceQuality "1"]
[TimeControl "5400+30"]

{[%evp 13,31,23,41,12,22,22,26,21,28,-8,31,-4,-4,0,12,0,0,-29,4,-55]} 1. e4 {[%emt 0:05:20]} e5 {[%emt 0:00:11]} 2. Nf3 {[%emt 0:00:19]} Nf6 {[%emt 0:00:05]} 3. Nxe5 {[%emt 0:01:03]} d6 {[%emt 0:00:05]} 4. Nf3 {[%emt 0:00:03]} Nxe4 {[%emt 0:00:05]} 5. Nc3 {[%emt 0:00:02]} Nf6 {[%emt 0:00:05]} 6. d4 {[%emt 0:00:24]} Be7 {[%emt 0:00:05]} 7. Bd3 {[%emt 0:04:36]} O-O {[%emt 0:01:11]} 8. Bf4 {[%emt 0:07:35] 8.0-0 is the modern continuation. C42: Petroff Defence: 3 Nxe5 and unusual White 3rd moves.} Re8 {[%emt 0:01:03]} 9. O-O {[%emt 0:02:50]} Bg4 {[%emt 0:03:12][%cal Bc8g4,Bg4h5,Bh5g6][%mdl 32]} 10. Re1 {[%emt 0:02:36] White has an edge.} Nbd7 {[%emt 0:00:18] [#]} 11. Be2 $146 {[%emt 0:02:55]} ({Predecessor:} 11. h3 Bh5 12. Re3 c6 13. Qd2 Bxf3 14. Rxf3 Qb6 15. b3 Qxd4 16. Bxh7+ Kxh7 17. Qxd4 {1-0 (27) Kuprijanov,E-Pustovalov,R Serpukhov 2001}) 11... a6 {[%emt 0:09:01]} 12. a4 {[%emt 0:02:54]} d5 {[%emt 0:05:45]} 13. h3 {[%emt 0:04:06]} Bh5 {[%emt 0:00:05]} 14. g4 {[%emt 0:01:56]} Bg6 {[%emt 0:00:04]} 15. Ne5 {[%emt 0:05:37]} (15. g5 $5 {[%cal Rg5f6]} Nh5 16. Be3 $11) 15... Nxe5 {[%emt 0:06:10]} 16. Bxe5 {[%emt 0:10:11] Not much happened in this game.  Weighted Error Value: White=0.19 (very precise) /Black=0.13 (very precise)} ({Better is} 16. dxe5 $11 Ne4 17. Nxe4 (17. Nxd5 $2 Bc5 $19) 17... Bxe4 18. Bd3) 1/2-1/2

[Event "Vienna Championship 2022"]
[Site "Vienna"]
[Date "2022.09.25"]
[Round "9.5"]
[White "Halvax, Georg"]
[Black "Baumegger, Siegfried"]
[Result "1/2-1/2"]
[ECO "E14"]
[WhiteElo "2423"]
[BlackElo "2447"]
[Annotator "TA"]
[PlyCount "94"]
[EventDate "2022.09.17"]
[EventType "tourn"]
[EventCountry "AUT"]
[SourceTitle "playchess.com"]
[Source "ChessBase"]
[SourceQuality "1"]
[TimeControl "5400+30"]

{[%evp 20,94,23,14,31,16,20,19,9,-26,0,0,0,0,0,-9,47,46,46,46,46,0,0,0,0,0,0,-400,-392,-497,-542,-541,-508,-5339,-3130,-2080,-1049,-1042,-1030,-1013,-233,-204,-222,-211,-212,-703,0,0,0,-639,-593,-384,-283,-277,-275,-250,-296,-262,-191,-204,-189,-710,-285,-441,-447,-690,-679,-583,-388,-366,0,0,0,0,0,0,0]} 1. d4 {[%emt 0:00:17]} Nf6 {[%emt 0:00:15]} 2. c4 {[%emt 0:00:18]} e6 {[%emt 0:01:13]} 3. Nf3 {[%emt 0:00:12]} Bb4+ {[%emt 0:01:11]} 4. Nbd2 {[%emt 0:00:59]} b6 {[%emt 0:00:13]} 5. a3 {[%emt 0:00:11]} Bxd2+ {[%emt 0:00:06]} 6. Qxd2 {[%emt 0:00:08]} Bb7 {[%emt 0:00:05]} 7. e3 {[%emt 0:00:11]} O-O {[%emt 0:00:46]} 8. b4 {[%emt 0:00:43]} a5 {[%emt 0:02:53]} 9. b5 {[%emt 0:06:22]} d6 {[%emt 0:00:23]} 10. Bb2 {[%emt 0:00:54]} Nbd7 {[%emt 0:00:23]} 11. Be2 {[%emt 0:03:24]} Ne4 {[%emt 0:02:28] E14: Queen's Indian: Classical Variation (4 e3).} 12. Qc2 {[%emt 0:00:17]} f5 {[%emt 0:00:33]} 13. O-O {[%emt 0:01:28]} Rf6 {[%emt 0:28:42]} 14. d5 {[%emt 0:02:08] [#]} Rg6 $146 {[%emt 0:07:09]} ({Predecessor:} 14... Rh6 15. g3 Ndc5 16. Rad1 Qe7 17. Nd4 Qg5 18. Kg2 Rf8 19. Rh1 exd5 20. Nf3 Qh5 21. cxd5 {½-½ (30) Van Wely,L (2675)-Papaioannou,I (2637) Achaia 2017}) 15. Nd4 {[%emt 0:19:24]} Ndc5 {[%emt 0:01:03]} 16. f4 {[%emt 0:07:38]} Qe7 {[%emt 0:17:51]} 17. Bf3 {[%emt 0:05:06]} Rf8 {[%emt 0:00:42]} (17... exd5 $11 18. cxd5 Qf7) 18. Nxe6 $14 {[%emt 0:02:00]} Nxe6 {[%emt 0:01:21]} 19. Bxe4 {[%emt 0:01:40]} Nc5 $1 {[%emt 0:09:44]} 20. Bxf5 {[%emt 0:07:10]} (20. Bf3 $1 $14) 20... Qxe3+ $11 {[%emt 0:01:35]} 21. Kh1 {[%emt 0:00:08]} Rxf5 {[%emt 0:00:11]} 22. Qxf5 {[%emt 0:01:40]} Qe2 {[%emt 0:00:58][%csl Gg6,LRb2,LRc4,LRg2][%cal Re2g2]} 23. g3 {[%emt 0:03:33][%mdl 8192]} Ne4 $19 {[%emt 0:01:48]} (23... Qxb2 24. Rae1 Rf6 25. Re8+ Kf7 26. Qh5+ g6 27. Qxh7+ Kxe8 28. Qg8+ Ke7 29. Qg7+ Kd8 30. Qg8+ Ke7 31. Qg7+ Kd8 32. Qg8+ Ke7 $11) 24. Bxg7 {[%emt 0:09:16]} Kxg7 {[%emt 0:04:09]} (24... Rxg7 25. Rac1 Rg6 26. Qh3 (26. Qd7 {is a self mate.} Nxg3+ 27. hxg3 Rh6+) 26... Nf2+ 27. Rxf2 Qxf2 28. Qh4 $17) 25. Qd7+ {[%emt 0:00:11] [#]} Kh8 $1 {[%emt 0:00:24][%cal Oe4g3]} 26. Qd8+ {[%emt 0:01:37]} (26. Qe8+ $142 Rg8 27. Qf7) 26... Rg8 {[%emt 0:00:50]} 27. Qxc7 {[%emt 0:02:48] [#]} Qg4 $1 {[%emt 0:06:32][%cal Oe4g3] ( -> ...Nxg3+!)} 28. Rg1 {[%emt 0:04:27]} Qf3+ {[%emt 0:00:46]} 29. Rg2 {[%emt 0:00:09]} Bc8 $2 {[%emt 0:00:15]} (29... Nf2+ 30. Kg1 Nh3+ 31. Kh1 {[#]} Nxf4 $1 {[%mdl 512]}) 30. Qxb6 {[%emt 0:04:14]} Bh3 {[%emt 0:02:05][%csl Gh3][%cal Rf3g2][%mdl 64] Pin} 31. Qd4+ {[%emt 0:00:47]} Rg7 {[%emt 0:00:07][%csl Gh3][%cal Rf3g2][%mdl 1024] Black has strong compensation.} 32. Raa2 {[%emt 0:01:38]} (32. Qb2 Bxg2+ 33. Qxg2) 32... Qf1+ {[%emt 0:01:01]} 33. Rg1 {[%emt 0:00:27]} Qf3+ $40 {[%emt 0:00:03][%mdl 128] Black is up to no good.} 34. Rgg2 $1 {[%emt 0:00:04]} Bxg2+ {[%emt 0:00:04]} 35. Rxg2 {[%emt 0:00:08]} Qf1+ {[%emt 0:00:03]} 36. Qg1 {[%emt 0:00:06]} Qxc4 {[%emt 0:00:11]} 37. Qd1 {[%emt 0:01:05]} Qxb5 {[%emt 0:04:49]} 38. Rc2 {[%emt 0:01:17] White threatens Rc8+ and mate.} h6 {[%emt 0:03:43]} 39. Kg2 {[%emt 0:00:37]} Nf6 {[%emt 0:01:50] Inhibits Qh5.} 40. Re2 $2 {[%emt 0:02:17]} (40. Rc8+ Rg8 41. Rc6) 40... Rc7 {[%emt 0:01:00]} (40... Nxd5 $142 41. Re4 Nc3 42. Qxd6 Nxe4 43. Qxh6+ Kg8 44. Qe6+ Kf8 45. Qxe4 Re7) 41. Re6 {[%emt 0:00:55]} (41. a4 $142 Qc4 42. Kh3) 41... Qb2+ {[%emt 0:00:10]} 42. Kh3 {[%emt 0:00:17]} (42. Re2 $142 Qxa3 43. Qd4) 42... Rc2 {[%emt 0:00:11][%csl Gb2][%cal Rc2h2]} 43. Qg1 {[%emt 0:01:02]} Rd2 {[%emt 0:01:36]} 44. Rxd6 {[%emt 0:00:18]} Rxd5 $2 {[%emt 0:00:26]} ({Better is} 44... Kg7 $19 45. Rc6 (45. Qa7+ $2 Kg6 $19) 45... Rxd5 46. Rc7+ Kg8 47. Rc8+ Kh7 48. Rc7+ Kg8 49. Rc8+ Kf7 50. Rc7+ Kf8 51. Rc8+ Kf7 52. Rc7+ Kg8) 45. Rxd5 $11 {[%emt 0:01:17] The position is equal.} Nxd5 {[%emt 0:00:04]} 46. Qc5 {[%emt 0:00:25][%csl LRa5,LRd5]} Qd2 {[%emt 0:01:00]} 47. Qf8+ {[%emt 0:00:06]} Kh7 {[%emt 0:00:06] Weighted Error Value: White=0.86/Black=0.88} 1/2-1/2